bitfinex-derivatives/quotes_ETHF0:USTF0_20260314
["timestamp","ask_amount","ask_price","bid_price","bid_amount"]
[1773490508937,1.07429214,2075.7,2074.6,6.03572909]
[1773490509137,1.07429214,2075.5,2074.7,1.01575024]
[1773490510235,1.07429214,2075.4,2074.7,1.01575024]
[1773490525244,1.07429214,2075.4,2074.6,0.00402553]
[1773490525846,1.07429214,2075.4,2074.6,0.97815144]
[1773490532652,0.95217522,2075.3,2074.6,0.97815144]
[1773490532847,4.99468266,2075.5,2074.6,0.97815144]
[1773490533247,0.95217522,2075.4,2074.6,0.97815144]
[1773490538257,0.95217522,2075.3,2074.6,0.97815144]
[1773490548557,6.53208795,2075.2,2074.6,0.97815144]
[1773490548857,5.57991273,2075.1,2074.6,0.97815144]
[1773490549058,0.95217522,2075.2,2074.6,0.97815144]
[1773490549560,6.53208795,2075.2,2074.6,0.97815144]
[1773490549762,5.57991273,2075.1,2074.6,0.97815144]
[1773490550059,0.95217522,2075.2,2074.6,0.97815144]
[1773490550459,6.53225502,2075.2,2074.6,0.97815144]
[1773490550658,5.5800798,2075.1,2074.6,0.97815144]
[1773490550852,0.90624831,2075.1,2074.6,0.97815144]
[1773490552862,6.48651341,2075.1,2074.6,0.97815144]
[1773490553062,0.90624831,2075.1,2074.6,0.97815144]
[1773490553763,6.48694848,2075.1,2074.6,0.97815144]
[1773490553960,0.81463276,2075.2,2074.6,0.97815144]
[1773490554164,5.58095019,2075.1,2074.6,0.97815144]
[1773490554859,5.58095019,2075.3,2074.6,0.97815144]
[1773490555062,5.58095282,2075.2,2074.6,0.97815144]
[1773490555261,0.81463276,2075.3,2074.6,0.97815144]
[1773490555464,5.58119265,2075.2,2074.6,0.97815144]
[1773490555663,6.39582541,2075.2,2074.7,0.82607827]
[1773490555865,0.81463276,2075.2,2074.7,0.82607827]
[1773490556565,6.39582541,2075.2,2074.7,0.82607827]
[1773490556863,0.81463276,2075.2,2074.7,0.82607827]
[1773490557467,6.39565957,2075.2,2074.7,0.82607827]
[1773490557660,0.81463276,2075.2,2074.7,0.82607827]
[1773490558265,6.39555212,2075.2,2074.7,0.82607827]
[1773490558467,0.81463276,2075.2,2074.7,0.82607827]
[1773490559064,0.81463276,2075.1,2074.7,0.82607827]
[1773490561967,5.58129878,2075.4,2074.9,0.82607827]
[1773490562269,5.58129878,2075.3,2074.9,0.82607827]
[1773490562468,5.58129878,2075.2,2074.9,0.82607827]
[1773490562770,6.39593154,2075.2,2074.9,0.82607827]
[1773490562970,0.81463276,2075.2,2074.9,0.82607827]
[1773490563566,6.39578867,2075.2,2074.9,0.82607827]
[1773490563770,0.81463276,2075.2,2074.9,0.82607827]
[1773490564468,6.39551595,2075.2,2074.9,0.82607827]
[1773490564669,0.81463276,2075.2,2074.9,0.82607827]
[1773490565471,6.3954886,2075.2,2074.9,0.82607827]
[1773490565671,0.81463276,2075.2,2074.9,0.82607827]
[1773490566371,6.39540627,2075.2,2074.9,0.82607827]
[1773490566572,0.81463276,2075.2,2074.9,0.82607827]
[1773490566768,0.81463276,2075.3,2074.9,0.82607827]
[1773490567072,5.58070344,2075.2,2074.9,0.82607827]
[1773490567373,6.3953362,2075.2,2074.9,0.82607827]
[1773490567670,0.81463276,2075.2,2074.9,0.82607827]
[1773490568471,6.39527004,2075.2,2074.9,0.82607827]
[1773490568672,0.81463276,2075.2,2074.9,0.82607827]
[1773490569271,0.81463276,2075.1,2074.7,0.82607827]
[1773490572974,0.81463276,2075.1,2074.6,0.8301038]
[1773490578482,6.40012643,2075.3,2074.9,0.82607827]
[1773490578676,6.04664521,2075.6,2074.6,0.00402553]
[1773490578677,4.04250744,2075.6,2075.1,0.82607827]
[1773490578873,5.58501282,2075.5,2075.1,0.82607827]
[1773490579073,5.58501282,2075.4,2075.1,0.82607827]
[1773490579279,0.81463276,2075.6,2075.1,0.82607827]
[1773490579477,6.39769769,2075.5,2075.1,0.82607827]
[1773490579681,5.58306493,2075.4,2075.1,0.82607827]
[1773490579877,0.81463276,2075.5,2075.1,0.82607827]
[1773490580281,6.39769769,2075.5,2075.1,0.82607827]
[1773490580482,0.81463276,2075.5,2075.1,0.82607827]
[1773490580882,6.3965973,2075.5,2075.1,0.82607827]
[1773490581086,0.81463276,2075.5,2075.1,0.82607827]
[1773490589285,0.81463276,2075.5,2074.9,0.79324]
[1773490589485,0.8119357,2075.4,2074.9,0.79324]
[1773490602095,0.8119357,2075.3,2074.9,0.79324]
[1773490603894,0.8119357,2075.5,2074.9,0.79324]
[1773490604203,6.39076653,2075.5,2074.9,0.79324]
[1773490604404,0.8119357,2075.5,2074.9,0.79324]
[1773490604799,6.39105335,2075.5,2074.9,0.79324]
[1773490604996,0.8119357,2075.5,2074.9,0.79324]
[1773490605404,6.39105335,2075.5,2074.9,0.79324]
[1773490605606,0.8119357,2075.5,2074.9,0.79324]
[1773490606002,6.39180884,2075.5,2074.9,0.79324]
[1773490606198,0.8119357,2075.5,2074.9,0.79324]
[1773490606806,6.38984309,2075.5,2074.9,0.79324]
[1773490607002,0.8119357,2075.5,2074.9,0.79324]
[1773490607405,0.8119357,2075.4,2074.9,0.79324]
[1773490607606,0.8119357,2075.3,2074.9,0.79324]
[1773490618912,5.58282593,2075.4,2074.9,0.79324]
[1773490619210,0.72404011,2075.4,2074.9,0.79324]
[1773490619909,6.30743119,2075.4,2074.9,0.79324]
[1773490620104,0.72404011,2075.4,2074.9,0.79324]
[1773490620709,5.58341951,2075.4,2074.9,0.79324]
[1773490621810,0.72404011,2075.5,2074.9,0.79324]
[1773490622010,5.58344015,2075.4,2074.9,0.79324]
[1773490622211,4.04250744,2075.7,2074.9,0.79324]
[1773490622512,6.30748429,2075.6,2074.9,0.79324]
[1773490622712,6.30748429,2075.5,2074.9,0.79324]
[1773490623012,5.58344418,2075.4,2074.9,0.79324]
[1773490628018,6.30748429,2075.4,2074.9,0.79324]
[1773490628218,0.72404011,2075.5,2074.9,0.79324]
[1773490628516,5.58366398,2075.4,2074.9,0.79324]
[1773490629517,6.30770409,2075.4,2074.9,0.79324]
[1773490629719,0.72404011,2075.4,2074.9,0.79324]
[1773490630420,6.30779552,2075.4,2074.9,0.79324]
[1773490630618,0.72404011,2075.4,2074.9,0.79324]
[1773490631221,6.30791148,2075.4,2074.9,0.79324]
[1773490631419,0.72404011,2075.4,2074.9,0.79324]
[1773490632218,6.30805793,2075.4,2074.9,0.79324]
[1773490632419,4.04250744,2075.8,2074.9,0.79324]
[1773490632619,0.72404011,2075.5,2074.9,0.79324]
[1773490633116,0.72404011,2075.4,2074.9,0.79324]
[1773490633424,4.04250744,2075.8,2074.9,0.79324]
[1773490633625,0.72404011,2075.6,2074.9,0.79324]
[1773490633824,6.30732176,2075.6,2074.9,0.79324]
[1773490634027,0.72404011,2075.6,2074.9,0.79324]
[1773490640534,0.72404011,2075.6,2075.0,0.66828927]
[1773490652737,0.72404011,2075.6,2074.9,0.24126456]
[1773490652738,0.72404011,2075.6,2074.9,0.65915855]
[1773490652943,0.60078528,2075.4,2074.6,0.00402553]
[1773490653237,0.60078528,2075.2,2074.3,8.18718473]
[1773490653439,0.60078528,2075.1,2074.3,0.65915855]
[1773490654235,0.60078528,2075.1,2074.3,0.66482341]
[1773490665942,0.60078528,2075.1,2074.3,0.00566486]
[1773490668942,0.60078528,2075.1,2074.3,0.60130529]
[1773490669147,0.59409573,2075.0,2074.3,0.60130529]
[1773490679653,0.58435148,2074.9,2074.3,0.60130529]
[1773490679854,0.58976478,2074.9,2074.3,0.60130529]
[1773490682755,6.49198562,2074.9,2074.3,0.60130529]
[1773490682951,0.58976478,2074.9,2074.3,0.60130529]
[1773490683651,6.49668679,2074.9,2074.3,0.60130529]
[1773490683857,0.58976478,2074.9,2074.3,0.60130529]
[1773490684456,6.49711517,2074.9,2074.3,0.60130529]
[1773490684651,0.58976478,2074.9,2074.3,0.60130529]
[1773490685358,6.49733933,2074.9,2074.3,0.60130529]
[1773490685559,0.58976478,2074.9,2074.3,0.60130529]
[1773490686154,6.49749449,2074.9,2074.3,0.60130529]
[1773490686363,0.58976478,2074.9,2074.3,0.60130529]
[1773490687058,6.50479399,2074.9,2074.3,0.60130529]
[1773490687260,0.58976478,2074.9,2074.3,0.60130529]
[1773490687962,6.50500192,2074.9,2074.3,0.60130529]
[1773490688163,0.58976478,2074.9,2074.3,0.60130529]
[1773490688758,6.50525257,2074.9,2074.3,0.60130529]
[1773490688964,0.58976478,2074.9,2074.3,0.60130529]
[1773490689361,0.0054133,2074.9,2074.4,1.52462944]
[1773490689568,0.58435148,2075.1,2074.7,0.54294334]
[1773490690471,0.58931946,2075.1,2074.7,0.54294334]
[1773490698687,0.00496798,2075.1,2074.7,0.54294334]
[1773490700991,0.58435148,2075.3,2074.7,0.54294334]
[1773490701492,6.45112113,2075.2,2074.7,0.54294334]
[1773490701691,0.54262795,2075.2,2074.7,0.54294334]
[1773490701991,0.5477766,2075.2,2074.7,0.54294334]
[1773490704494,6.45581623,2075.2,2074.7,0.54294334]
[1773490704695,0.5477766,2075.2,2074.7,0.54294334]
[1773490705296,5.91317473,2075.2,2074.7,0.54294334]
[1773490705495,0.00514865,2075.2,2074.7,0.54294334]
[1773490705694,5.91305422,2075.2,2074.7,0.54294334]
[1773490705897,0.00514865,2075.2,2074.7,0.54294334]
[1773490706395,5.91305422,2075.2,2074.7,0.54294334]
[1773490706596,0.00514865,2075.2,2074.7,0.54294334]
[1773490706988,5.91297576,2075.2,2074.7,0.54294334]
[1773490707189,0.00514865,2075.2,2074.7,0.54294334]
[1773490707393,5.91296751,2075.2,2074.7,0.54294334]
[1773490713113,6.45559546,2075.2,2074.7,0.54294334]
[1773490713301,0.5477766,2075.2,2074.7,0.54294334]
[1773490714001,6.45662223,2075.2,2074.7,0.54294334]
[1773490714202,0.5477766,2075.2,2074.7,0.54294334]
[1773490714802,6.45706825,2075.2,2074.7,0.54294334]
[1773490715004,0.5477766,2075.2,2074.7,0.54294334]
[1773490718008,4.04250744,2075.4,2074.7,0.54294334]
[1773490718009,4.58513539,2075.4,2074.9,0.54544814]
[1773490718210,0.54262795,2075.4,2075.1,0.54544814]
[1773490718707,0.54262795,2075.4,2074.9,0.54544814]
[1773490719309,0.54624259,2075.4,2074.9,0.54544814]
[1773490719710,0.00361464,2075.4,2074.9,0.54544814]
[1773490734125,0.68751262,2075.4,2074.9,0.54544814]
[1773490741125,0.00361464,2075.4,2074.9,0.54544814]
[1773490741332,0.68389798,2075.8,2074.9,0.54544814]
[1773490741529,0.68389798,2075.7,2074.9,0.54544814]
[1773490741830,0.68389798,2075.9,2074.9,0.54544814]
[1773490742031,0.68389798,2075.8,2074.9,0.54544814]
[1773490742232,6.40553535,2075.8,2074.9,0.54544814]
[1773490742429,0.68899124,2075.8,2074.9,0.54544814]
[1773490743130,6.40561823,2075.8,2074.9,0.54544814]
[1773490743430,0.68899124,2075.8,2074.9,0.54544814]
[1773490744027,6.40587145,2075.8,2074.9,0.54544814]
[1773490744228,0.68899124,2075.8,2074.9,0.54544814]
[1773490744823,0.68389798,2075.7,2074.9,0.54544814]
[1773490763152,0.68389798,2075.7,2075.0,0.58938038]
[1773490763843,0.6073929,2075.5,2074.8,0.24573356]
[1773490764053,0.6073929,2075.5,2074.7,7.43931571]
[1773490764651,0.6073929,2075.5,2074.7,0.58938038]
[1773490767354,0.6073929,2075.5,2074.7,0.83131886]
[1773490768553,0.6073929,2075.4,2074.7,0.83131886]
[1773490769653,0.6073929,2075.4,2074.8,0.58938038]
[1773490774652,0.6073929,2075.6,2074.8,0.58938038]
[1773490775754,0.00509326,2075.8,2074.8,0.58938038]
[1773490775755,6.34358663,2075.8,2074.8,0.58938038]
[1773490775950,0.61248616,2075.8,2074.8,0.58938038]
[1773490776554,0.6073929,2075.7,2074.8,0.58938038]
[1773490781458,0.6073929,2075.6,2074.8,0.58938038]
[1773490781954,0.6073929,2075.5,2074.8,0.58938038]
[1773490794066,0.56217979,2075.7,2074.9,0.56589701]
[1773490794273,0.56217979,2075.6,2074.9,0.56589701]
[1773490801571,0.56217979,2075.3,2074.7,8.13237896]
[1773490801775,0.56217979,2075.3,2074.7,0.56589701]
[1773490805272,0.56217979,2075.1,2074.5,0.56589701]
[1773490810981,0.56217979,2075.5,2074.8,0.56589701]
[1773490811383,0.56217979,2075.4,2074.8,0.56589701]
[1773490811978,6.27175472,2075.4,2074.8,0.56589701]
[1773490812177,0.56217979,2075.4,2074.8,0.56589701]
[1773490814185,0.56217979,2075.4,2075.0,0.56589701]
[1773490814478,0.56217979,2075.6,2075.0,0.56589701]
[1773490824498,0.56217979,2075.6,2075.1,0.59141104]
[1773490824702,0.56848045,2075.7,2075.3,0.59141104]
[1773490825599,0.57357371,2075.8,2075.3,0.59141104]
[1773490844718,6.30797738,2075.8,2075.3,0.59141104]
[1773490844927,0.57357371,2075.8,2075.3,0.59141104]
[1773490845625,0.56848045,2075.7,2075.3,0.59141104]
[1773490851925,0.00509326,2075.8,2075.3,0.59141104]
[1773490852330,0.58700244,2075.8,2075.3,0.59141104]
[1773490856534,0.00509326,2075.8,2075.3,0.59141104]
[1773490860640,5.73082421,2076.1,2075.5,0.58867009]
[1773490860938,0.58190918,2076.2,2075.5,0.58867009]
[1773490861136,5.56181871,2076.4,2075.5,0.58867009]
[1773490861137,6.31041856,2076.1,2075.5,0.58867009]
[1773490861434,0.58190918,2076.1,2075.5,0.58867009]
[1773490861637,0.58807011,2076.1,2075.5,0.58867009]
[1773490862031,6.31535028,2076.1,2075.5,0.58867009]
[1773490862235,0.58807011,2076.1,2075.5,0.58867009]
[1773490873944,0.00616093,2076.1,2075.5,0.58867009]
[1773490874347,0.58807011,2076.1,2075.5,0.58867009]
[1773490875146,0.58807011,2076.1,2075.3,0.58867009]
[1773490876051,0.58190918,2076.0,2075.3,0.58867009]
[1773490886364,0.58635075,2075.9,2075.3,0.58867009]
[1773490894067,0.58635075,2075.9,2075.2,41.04638533]
[1773490894068,0.58635075,2075.8,2075.2,66.879]
[1773490894262,0.58635075,2075.8,2075.2,67.43881977]
[1773490894657,0.58635075,2075.8,2075.2,26.63881977]
[1773490894862,0.58635075,2075.6,2074.8,0.55981977]
[1773490895058,0.58635075,2075.4,2074.8,67.45681977]
[1773490895266,4.03766028,2075.7,2074.8,26.097]
[1773490895267,0.58635075,2075.3,2074.8,26.097]
[1773490896467,0.58635075,2075.3,2074.7,0.55981977]
[1773490901669,0.58635075,2075.7,2074.7,0.55981977]
[1773490902168,0.58635075,2075.6,2074.7,0.55981977]
[1773490918572,0.58635075,2075.6,2074.8,26.39]
[1773490918881,0.58635075,2075.6,2074.9,0.59005936]
[1773490922680,6.30920005,2075.6,2074.9,0.59005936]
[1773490922880,0.58635075,2075.6,2074.9,0.59005936]
[1773490923581,14.79564521,2076.0,2075.2,0.59005936]
[1773490923582,0.54687765,2075.8,2075.2,0.59005936]
[1773490923981,6.27507742,2075.8,2075.2,0.59005936]
[1773490924283,0.54687765,2075.8,2075.2,0.59005936]
[1773490924684,6.27618912,2075.8,2075.2,0.59005936]
[1773490924885,0.54687765,2075.8,2075.2,0.59005936]
[1773490925086,6.27593615,2075.9,2075.2,0.59005936]
[1773490925384,5.7290585,2075.8,2075.2,0.59005936]
[1773490926086,6.27593615,2075.8,2075.2,0.59005936]
[1773490926289,0.54687765,2075.8,2075.2,0.59005936]
[1773490926488,0.54687765,2075.9,2075.3,1.52324056]
[1773490926690,6.27345654,2075.9,2075.4,0.59005936]
[1773490926889,0.54687765,2075.9,2075.4,0.59005936]
[1773490927387,0.54687765,2075.8,2075.4,0.59005936]
[1773490941604,0.56168068,2075.9,2075.4,0.59005936]
[1773490943504,0.56168068,2076.0,2075.4,0.59005936]
[1773490951707,6.28851504,2076.0,2075.4,0.59005936]
[1773490951908,0.56168068,2076.0,2075.4,0.59005936]
[1773490952211,6.28982702,2076.0,2075.4,0.59005936]
[1773490955911,6.28982702,2076.0,2075.6,0.54526287]
[1773490956613,0.56168068,2076.0,2075.6,0.54526287]
[1773490961917,0.56784161,2076.1,2075.6,0.54526287]
[1773490966611,6.04664521,2076.6,2075.3,0.23902586]
[1773490966612,5.41450409,2076.8,2076.0,9.08972251]
[1773490966812,6.29919779,2077.5,2076.6,4.02651714]
[1773490966813,0.59650277,2076.7,2076.6,4.02651714]
[1773490967216,0.56168068,2077.3,2076.5,44.82651714]
[1773490967411,0.56168068,2077.0,2076.5,44.82651714]
[1773490967607,0.56669478,2077.0,2076.5,45.37699752]
[1773490967808,8.08784172,2076.9,2076.5,45.37699752]
[1773490968009,0.56168068,2076.8,2076.5,45.37699752]
[1773490969218,0.56168068,2076.8,2076.5,41.35048038]
[1773490969521,1.07738828,2076.9,2076.5,41.35048038]
[1773490969818,1.07738828,2076.8,2076.5,41.35048038]
[1773490971620,1.16788584,2076.6,2076.3,4.02651714]
[1773490971810,1.16788584,2076.6,2076.2,5.15213245]
[1773490972014,1.16788584,2076.4,2076.2,4.02651714]
[1773490972213,0.37693426,2076.4,2076.2,44.82651714]
[1773490972414,0.37693426,2076.4,2076.2,40.8]
[1773490972623,0.37693426,2076.4,2076.2,40.80568362]
[1773490972819,1.16788584,2076.9,2076.2,0.00568362]
[1773490973020,1.16788584,2076.5,2076.2,0.00568362]
[1773490973414,1.16788584,2076.4,2076.2,0.00568362]
[1773490973621,8.69404688,2076.5,2076.2,0.00568362]
[1773490973816,1.16788584,2076.5,2076.2,1.13129893]
[1773490974219,8.69404688,2076.5,2076.2,1.13129893]
[1773490976118,13.5120482,2076.4,2076.1,0.23604401]
[1773490976314,1.16788584,2076.3,2076.0,1.12561531]
[1773490976521,0.59507676,2076.6,2076.0,1.12561531]
[1773490976822,21.65823912,2076.6,2076.1,1.12561531]
[1773490977222,0.58679679,2076.5,2076.1,1.130001]
[1773490977622,8.11295783,2076.5,2076.1,1.130001]
[1773490979829,0.58679679,2076.5,2076.1,1.130001]
[1773490980023,8.11295783,2076.5,2076.1,1.130001]
[1773490981729,4.81800132,2076.4,2076.1,1.130001]
[1773490982530,12.34416236,2076.4,2076.1,1.130001]
[1773490983930,4.81800132,2076.4,2076.1,1.130001]
[1773490985225,12.34416236,2076.4,2076.1,1.130001]
[1773490985425,4.81800132,2076.4,2076.1,1.130001]
[1773490985833,12.34416236,2076.4,2076.1,1.130001]
[1773490986129,0.54418059,2076.2,2075.7,7.52117317]
[1773490986328,0.54418059,2076.1,2075.7,1.12561531]
[1773490986528,8.82,2076.2,2075.7,1.12561531]
[1773490986832,9.34491164,2076.2,2075.7,1.12561531]
[1773490987331,0.55463816,2076.0,2075.7,1.12969255]
[1773490987725,7.52616104,2075.9,2075.7,1.12969255]
[1773490987922,1.04955506,2076.0,2075.7,1.12969255]
[1773490988325,0.02997399,2076.2,2075.7,1.12969255]
[1773490988525,8.821,2076.5,2075.7,1.12969255]
[1773490988830,8.771,2076.5,2075.7,1.12969255]
[1773490989131,0.00257052,2076.4,2075.7,1.12969255]
[1773490993837,0.98311609,2076.6,2075.9,1.86593822]
[1773490998531,0.98311609,2076.6,2075.7,0.00407724]
[1773490998736,0.98311609,2076.6,2075.8,1.87065086]
[1773491007434,0.78808917,2076.5,2075.8,1.87065086]
[1773491015148,6.45700818,2076.5,2075.8,1.87065086]
[1773491015351,0.78808917,2076.5,2075.8,1.87065086]
[1773491015746,6.46449028,2076.5,2075.8,1.87065086]
[1773491016047,0.78808917,2076.5,2075.8,1.87065086]
[1773491016454,6.46449028,2076.5,2075.8,1.87065086]
[1773491016647,0.78808917,2076.5,2075.8,1.87065086]
[1773491017148,6.46465488,2076.5,2075.8,1.87065086]
[1773491017348,0.78808917,2076.5,2075.8,1.87065086]
[1773491017749,6.46526758,2076.5,2075.8,1.87065086]
[1773491017950,0.78808917,2076.5,2075.8,1.87065086]
[1773491018450,6.46526758,2076.5,2075.8,1.87065086]
[1773491018651,0.78808917,2076.5,2075.8,1.87065086]
[1773491019150,6.46627383,2076.5,2075.8,1.87065086]
[1773491019351,0.78808917,2076.5,2075.8,1.87065086]
[1773491019752,6.46657037,2076.5,2075.8,1.87065086]
[1773491019947,0.78808917,2076.5,2075.8,1.87065086]
[1773491020351,6.46657037,2076.5,2075.8,1.87065086]
[1773491020553,0.78808917,2076.5,2075.8,1.87065086]
[1773491021051,6.46691993,2076.5,2075.8,1.87065086]
[1773491021252,0.78808917,2076.5,2075.8,1.87065086]
[1773491023851,6.04441441,2076.9,2075.9,2.16665447]
[1773491023852,5.67979147,2076.6,2075.9,2.16665447]
[1773491024052,0.6079384,2076.9,2076.0,2.16665447]
[1773491024259,5.67908252,2076.8,2076.0,2.16665447]
[1773491025251,0.6079384,2076.9,2076.0,2.16665447]
[1773491025447,6.28285434,2076.9,2076.0,2.16665447]
[1773491026259,5.67491594,2076.9,2076.0,2.16665447]
[1773491027258,0.60227384,2077.0,2076.0,2.16665447]
[1773491027657,6.27268681,2077.0,2076.0,2.16665447]
[1773491027958,5.67041297,2076.9,2076.0,2.16665447]
[1773491028258,0.60227384,2077.0,2076.0,2.16665447]
[1773491028755,6.27152612,2077.0,2076.0,2.16665447]
[1773491028956,5.66925228,2076.9,2076.0,2.16665447]
[1773491029258,0.60227384,2077.0,2076.0,2.16665447]
[1773491029662,6.27056873,2077.0,2076.0,2.41335367]
[1773491029861,5.66829489,2076.9,2076.0,2.41335367]
[1773491030161,0.60227384,2077.0,2076.0,2.41335367]
[1773491030658,0.53885088,2076.9,2076.0,2.41335367]
[1773491041279,0.37653454,2077.0,2076.0,2.41335367]
[1773491041477,6.04046893,2077.0,2076.0,2.41335367]
[1773491041680,0.37653454,2077.0,2076.0,2.41335367]
[1773491042379,6.04054547,2077.0,2076.0,2.41335367]
[1773491042579,0.37653454,2077.0,2076.0,2.41335367]
[1773491043181,6.04070559,2077.0,2076.0,2.41335367]
[1773491043380,0.37653454,2077.0,2076.0,2.41335367]
[1773491043986,6.04095642,2077.0,2076.0,2.41335367]
[1773491044188,0.37653454,2077.0,2076.0,2.41335367]
[1773491045285,6.04130234,2077.0,2076.0,2.41335367]
[1773491045485,0.37653454,2077.0,2076.0,2.41335367]
[1773491045688,0.37653454,2077.0,2076.3,1.95539779]
[1773491046086,0.32992054,2076.9,2076.3,1.95539779]
[1773491048792,0.31073581,2077.0,2076.3,1.95539779]
[1773491050490,5.97650496,2077.0,2076.3,1.95539779]
[1773491050790,0.31073581,2077.0,2076.3,1.95539779]
[1773491051391,5.97994428,2077.0,2076.3,1.95539779]
[1773491051687,0.31073581,2077.0,2076.3,1.95539779]
[1773491052190,5.98142383,2077.0,2076.3,1.95539779]
[1773491052490,0.31073581,2077.0,2076.3,1.95539779]
[1773491052885,5.98343249,2077.0,2076.3,1.95539779]
[1773491053086,0.31073581,2077.0,2076.3,1.95539779]
[1773491053391,5.67269668,2076.9,2076.3,1.95539779]
[1773491054089,5.91861038,2076.9,2076.3,1.95539779]
[1773491066302,0.08027531,2076.8,2076.3,1.95539779]
[1773491066602,0.07716423,2076.7,2076.3,1.95539779]
[1773491066802,0.07716423,2076.7,2076.1,1.90794061]
[1773491067102,0.07716423,2076.6,2076.1,1.90794061]
[1773491076211,10.4795619,2076.8,2076.1,1.90794061]
[1773491078109,8.958,2076.8,2076.1,1.90794061]
[1773491079705,5.56529975,2077.0,2076.1,1.90794061]
[1773491079911,8.982,2076.8,2076.1,1.90794061]
[1773491088019,9.004,2076.9,2076.1,1.90794061]
[1773491088218,5.67911272,2076.8,2076.1,1.90794061]
[1773491093218,5.67911272,2076.7,2076.1,1.90794061]
[1773491093423,9.004,2076.9,2076.1,1.90794061]
[1773491093622,5.68179396,2076.8,2076.1,1.90794061]
[1773491093922,5.68179396,2076.7,2076.1,1.90794061]
[1773491094123,9.004,2076.9,2076.1,1.90794061]
[1773491094326,5.68263447,2076.8,2076.1,1.90794061]
[1773491094520,5.68263447,2076.7,2076.1,1.90794061]
[1773491094719,9.004,2076.9,2076.1,1.90794061]
[1773491095016,5.68263447,2076.8,2076.1,1.90794061]
[1773491095223,5.68263447,2076.7,2076.1,1.90794061]
[1773491095422,9.004,2076.9,2076.1,1.90794061]
[1773491095623,5.68380812,2076.8,2076.1,1.90794061]
[1773491095924,5.68380812,2076.7,2076.1,1.90794061]
[1773491096127,9.004,2076.9,2076.1,1.90794061]
[1773491096326,5.68380812,2076.8,2076.1,1.90794061]
[1773491096525,5.68380812,2076.7,2076.1,1.90794061]
[1773491096724,9.036,2076.8,2076.1,1.90794061]
[1773491096922,5.68642286,2076.7,2076.1,1.90794061]
[1773491097122,9.036,2076.8,2076.1,1.90794061]
[1773491097325,5.68641479,2076.7,2076.1,1.90794061]
[1773491097626,9.036,2076.8,2076.1,1.90794061]
[1773491097826,5.68641479,2076.7,2076.1,1.90794061]
[1773491098026,9.036,2076.8,2076.1,1.90794061]
[1773491098227,5.68641479,2076.7,2076.1,1.90794061]
[1773491098426,9.036,2076.8,2076.1,1.90794061]
[1773491098627,5.68641956,2076.7,2076.1,1.90794061]
[1773491098827,9.036,2076.8,2076.1,1.90794061]
[1773491099027,5.68641956,2076.7,2076.1,1.90794061]
[1773491099226,9.036,2076.8,2076.1,1.90794061]
[1773491099430,5.68641754,2076.7,2076.1,1.90794061]
[1773491099625,9.036,2076.8,2076.1,1.90794061]
[1773491099924,5.68641754,2076.7,2076.1,1.90794061]
[1773491100124,9.036,2076.8,2076.1,1.90794061]
[1773491100318,5.68641754,2076.7,2076.1,1.90794061]
[1773491100520,9.036,2076.8,2076.1,1.90794061]
[1773491100729,5.68642021,2076.7,2076.1,1.90794061]
[1773491100929,9.036,2076.8,2076.1,1.90794061]
[1773491101129,5.68641725,2076.7,2076.1,1.90794061]
[1773491101329,9.036,2076.8,2076.1,1.90794061]
[1773491101529,5.68641864,2076.7,2076.1,1.90794061]
[1773491101829,9.036,2076.8,2076.1,1.90794061]
[1773491102025,5.56529975,2077.0,2076.1,1.90794061]
[1773491102026,5.68641864,2076.7,2076.1,1.90794061]
[1773491102230,4.04373785,2077.0,2076.1,1.90794061]
[1773491102529,5.68482909,2076.9,2076.1,1.90794061]
[1773491102828,5.68482909,2076.8,2076.1,1.90794061]
[1773491103028,4.04373785,2077.0,2076.1,1.90794061]
[1773491103328,5.68485443,2076.9,2076.1,1.90794061]
[1773491103527,5.68485443,2076.8,2076.1,1.90794061]
[1773491103728,4.04373785,2077.0,2076.1,1.90794061]
[1773491103930,5.68443129,2076.9,2076.1,1.90794061]
[1773491104127,5.68443129,2076.8,2076.1,1.90794061]
[1773491104328,0.0050141,2077.0,2076.1,1.90794061]
[1773491104527,5.68410821,2076.9,2076.1,1.90794061]
[1773491104727,5.68410821,2076.8,2076.1,1.90794061]
[1773491104930,0.0050141,2077.0,2076.1,1.90794061]
[1773491105229,5.68410821,2076.9,2076.1,1.90794061]
[1773491105428,5.68410821,2076.8,2076.1,1.90794061]
[1773491105623,0.0050141,2077.0,2076.1,1.90794061]
[1773491105822,5.68385722,2076.9,2076.1,1.90794061]
[1773491106026,5.68385722,2076.8,2076.1,1.90794061]
[1773491106227,0.0050141,2077.0,2076.1,1.90794061]
[1773491106530,5.68267922,2076.9,2076.1,1.90794061]
[1773491110029,5.68267922,2076.9,2076.1,2.14937881]
[1773491111235,0.0050141,2077.0,2076.1,2.14937881]
[1773491111434,5.68495578,2077.0,2076.1,2.14937881]
[1773491117240,5.68495578,2077.0,2076.1,9.69872082]
[1773491117441,5.68495578,2077.0,2076.2,1.88166835]
[1773491119943,0.0050141,2077.0,2076.2,1.88166835]
[1773491120343,5.68129896,2077.0,2076.2,1.88166835]
[1773491120546,0.0050141,2077.0,2076.2,1.88166835]
[1773491120947,5.68118519,2077.0,2076.2,1.88166835]
[1773491121150,0.0050141,2077.0,2076.2,1.88166835]
[1773491121846,5.6811348,2077.0,2076.2,1.88166835]
[1773491122046,5.6761207,2076.9,2076.2,1.88166835]
[1773491122246,0.0050141,2077.0,2076.2,1.88166835]
[1773491122647,5.68132629,2077.0,2076.2,1.88166835]
[1773491122847,5.67631219,2076.9,2076.2,1.88166835]
[1773491123147,0.0050141,2077.0,2076.2,1.88166835]
[1773491123649,5.68155129,2077.0,2076.2,1.88166835]
[1773491123847,5.67653719,2076.9,2076.2,1.88166835]
[1773491124051,0.0050141,2077.0,2076.2,1.88166835]
[1773491124650,5.68155129,2077.0,2076.2,1.88166835]
[1773491124846,5.67653719,2076.9,2076.2,1.88166835]
[1773491125047,0.0050141,2077.0,2076.2,1.88166835]
[1773491125248,5.67679923,2076.9,2076.2,1.88166835]
[1773491135163,0.0050141,2077.0,2076.2,1.88166835]
[1773491135462,5.68185316,2076.9,2076.2,1.88166835]
[1773491135658,0.0050141,2077.0,2076.2,1.88166835]
[1773491135961,5.68185316,2076.9,2076.2,1.88166835]
[1773491136158,5.68185316,2076.8,2076.2,1.88166835]
[1773491136357,0.0050141,2077.0,2076.2,1.88166835]
[1773491136553,5.68171699,2076.9,2076.2,1.88166835]
[1773491136759,5.68171699,2076.8,2076.2,1.88166835]
[1773491136955,0.0050141,2077.0,2076.0,9.41217235]
[1773491137159,5.68194494,2076.9,2076.0,1.86283034]
[1773491137363,5.68194494,2076.8,2076.0,1.86283034]
[1773491137561,5.68194494,2076.7,2076.0,1.86283034]
[1773491137758,4.03872375,2076.9,2076.0,1.86283034]
[1773491137958,5.680859,2076.8,2076.0,1.86283034]
[1773491138159,5.680859,2076.7,2076.0,1.86283034]
[1773491138360,4.04373785,2077.0,2076.0,1.86283034]
[1773491138665,5.67959569,2076.9,2076.0,1.86283034]
[1773491138865,5.67959569,2076.8,2076.0,1.86283034]
[1773491139159,5.67959569,2076.7,2076.0,1.86283034]